fUST/lending_fUST_20250617
["ID","MTS","AMOUNT","RATE_DAILY","PERIOD"]
[366271304,1750169459583,-1439.13,0.00024191,6]
[366271306,1750169459593,-460.0,0.00024191,6]
[366271308,1750169459602,-658.34,0.00024191,6]
[366271309,1750169459612,-460.0,0.00024191,6]
[366271311,1750169459621,-2616.54,0.00024191,6]
[366271313,1750169459630,-510.47,0.00024191,6]
[366271315,1750169459640,-460.0,0.00024191,6]
[366271317,1750169459649,-460.0,0.00024191,6]
[366271319,1750169459659,-460.0,0.00024191,6]
[366271321,1750169459668,-551.34,0.00024191,6]
[366271323,1750169459677,-2158.43,0.00024191,6]
[366271325,1750169459686,-1169.2,0.00024191,6]
[366271326,1750169459695,-460.0,0.00024191,6]
[366271328,1750169459705,-460.0,0.00024191,6]
[366271330,1750169459715,-2802.09,0.00024191,6]
[366271332,1750169459724,-1936.0,0.00024191,6]
[366271334,1750169459733,-460.0,0.00024191,6]
[366271336,1750169459743,-460.0,0.00024191,6]
[366271338,1750169459752,-1800.86,0.00024191,6]
[366271339,1750169459761,-460.0,0.00024191,6]
[366271341,1750169459771,-607.98928057,0.00024191,6]
[366271343,1750169459780,-5628.82,0.00024191,6]
[366271345,1750169459789,-460.0,0.00024191,6]
[366271347,1750169459799,-460.0,0.00024191,6]
[366271349,1750169459809,-460.0,0.00024191,6]
[366271351,1750169459818,-460.0,0.00024191,6]
[366271354,1750169459841,-460.0,0.00024191,6]
[366271355,1750169459850,-460.0,0.00024191,6]
[366271357,1750169459860,-636.22,0.00024191,6]
[366271359,1750169459870,-460.0,0.00024191,6]
[366271361,1750169459881,-460.0,0.00024191,6]
[366271363,1750169459891,-460.0,0.00024191,6]
[366271365,1750169459901,-414.03512526,0.00024191,6]
[366271367,1750169459911,-337.01497783,0.00024191,6]
[366271369,1750169459922,-460.0,0.00024191,6]
[366271371,1750169459932,-1118.45,0.00024191,6]
[366271373,1750169459942,-1122.8,0.00024191,6]
[366271375,1750169459952,-400.42306902,0.00024191,6]
[366271377,1750169459963,-460.0,0.00024191,6]
[366271379,1750169459973,-460.0,0.00024191,6]
[366271381,1750169459984,-573.87,0.00024191,6]
[366271383,1750169459995,-872.02,0.00024191,6]
[366271385,1750169460005,-394.29944436,0.00024191,6]
[366271387,1750169460016,-460.0,0.00024191,6]
[366271389,1750169460026,-460.0,0.00024191,6]
[366271391,1750169460037,-424.62582665,0.000242,3]
[366271393,1750169460047,-1078.39,0.000242,7]
[366271395,1750169460057,-4732.03,0.000242,7]
[366271396,1750169460068,-3000.0,0.000242,2]
[366271398,1750169460078,-844.00998261,0.000242,3]
[366271400,1750169460088,-9606.53595037,0.000242,2]
[366271404,1750169460119,-8733.47356226,0.000242,2]
[366271406,1750169460131,-10505.0,0.000242,2]
[366271408,1750169460143,-52699.23425999,0.000242,2]
[366271410,1750169460155,-2007.38414199,0.000242,2]
[366271453,1750169460629,-563.22962212,0.00022039,2]
[366271455,1750169460639,-5000.0,0.00023868,2]
[366271456,1750169460649,-500.0,0.00023997,2]
[366271458,1750169460660,-500.0,0.00023997,2]
[366271460,1750169460669,-500.0,0.00023997,2]
[366271462,1750169460679,-500.0,0.00023997,2]
[366271464,1750169460689,-500.0,0.00023997,2]
[366271466,1750169460698,-500.0,0.00023997,2]
[366271468,1750169460708,-500.0,0.00023997,2]
[366271470,1750169460718,-500.0,0.00023997,2]
[366271472,1750169460728,-460.0,0.00024109,2]
[366271474,1750169460739,-6826.12,0.00024109,6]
[366271476,1750169460749,-460.0,0.00024136,2]
[366271478,1750169460758,-551.68,0.00024164,2]
[366271479,1750169460770,-2789.22818608,0.000242,2]
[366271482,1750169460782,-33338.32389931,0.000242,2]
[366271483,1750169460792,-835.82910252,0.000242,3]
[366271485,1750169460801,-151.0,0.000242,5]
[366271487,1750169460812,-150.0,0.000242,5]
[366271489,1750169460822,-151.0,0.000242,7]
[366271491,1750169460832,-151.0,0.000242,7]
[366271493,1750169460841,-151.0,0.000242,7]
[366271495,1750169460851,-151.0,0.000242,7]
[366271497,1750169460861,-151.0,0.000242,7]
[366271499,1750169460871,-151.0,0.000242,7]
[366271501,1750169460880,-151.0,0.000242,7]
[366271503,1750169460890,-229.94211981,0.000242,7]
[366271505,1750169460899,-155.313187,0.000242,7]
[366271507,1750169460910,-639.0,0.000242,2]
[366271509,1750169460919,-153.78781,0.000242,7]
[366271511,1750169460930,-151.0,0.000242,7]
[366271512,1750169460940,-151.0,0.00024207,7]
[366271514,1750169460950,-3000.0,0.0002421,2]
[366271516,1750169460960,-151.0,0.00024218,7]
[366271518,1750169460969,-1747.0,0.00024218,3]
[366271520,1750169460979,-1747.0,0.00024218,3]
[366271522,1750169460989,-1747.0,0.00024218,3]
[366271524,1750169460999,-1747.0,0.00024218,3]
[366271526,1750169461009,-1747.0,0.00024218,3]
[366271528,1750169461021,-1747.0,0.00024218,3]
[366271530,1750169461031,-1747.0,0.00024218,3]
[366271532,1750169461041,-1747.0,0.00024218,3]
[366271534,1750169461051,-1747.0,0.00024218,3]
[366271536,1750169461060,-1747.0,0.00024218,3]
[366271538,1750169461071,-1747.0,0.00024218,3]
[366271540,1750169461080,-1747.0,0.00024218,3]
[366271541,1750169461089,-1747.0,0.00024218,3]
[366271543,1750169461099,-1747.0,0.00024218,3]
[366271545,1750169461109,-1747.0,0.00024218,3]
[366271547,1750169461118,-1747.0,0.00024218,3]
[366271549,1750169461128,-1747.0,0.00024218,3]
[366271551,1750169461138,-1747.0,0.00024218,3]
[366271552,1750169461148,-317.0,0.00024218,3]
[366271554,1750169461158,-1747.0,0.00024218,3]
[366271556,1750169461168,-317.0,0.00024218,3]
[366271557,1750169461178,-1747.0,0.00024218,3]
[366271559,1750169461187,-317.0,0.00024218,3]
[366271561,1750169461197,-1747.0,0.00024218,3]
[366271563,1750169461207,-317.0,0.00024218,3]
[366271565,1750169461220,-317.0,0.00024218,3]
[366271567,1750169461230,-317.0,0.00024218,3]
[366271569,1750169461239,-317.0,0.00024218,3]
[366271571,1750169461249,-317.0,0.00024218,3]
[366271573,1750169461260,-1747.0,0.00024218,3]
[366271575,1750169461271,-111.04850253,0.00024218,3]
[366273992,1750169807055,205.33,0.0001792,2]
[366273993,1750169808110,-158.25,0.00018773,2]
[366273994,1750169828222,-252.4,0.00018773,2]
[366273995,1750169828245,-51.87439283,0.00018773,2]
[366273996,1750169852073,-378.23402232,0.00018585,2]
[366273997,1750169857318,536.857267,0.00013699,2]
[366273998,1750169884033,202.3,0.000179,2]
[366273999,1750169885746,-204.76240816,0.00018585,2]
[366274000,1750169893904,-157.74935064,0.00018585,2]
[366274001,1750169951397,-157.9690465,0.00018585,2]
[366274002,1750169953181,-215.91284731,0.00018585,2]
[366274003,1750169964282,220.13,0.0001734,2]
[366274004,1750169964857,-3885.37232507,0.00018585,2]
[366274005,1750169964881,-157.9690465,0.00018653,2]
[366274006,1750169964902,-2779.30851825,0.00018773,2]
[366274007,1750169964924,-816.34,0.00019775,2]
[366274008,1750169964947,-300.0,0.00019999,2]
[366274009,1750169964968,-9226.01011018,0.0002,2]
[366274010,1750169966339,-284.54928678,0.00018166,2]
[366274011,1750169969570,5000.0,0.00018,2]
[366274012,1750169973110,-155.71071322,0.00018166,2]
[366274013,1750169973136,-144.28928678,0.00018992,2]
[366274014,1750169985862,-432.76371728,0.00018802,2]
[366274015,1750170012203,-150.0,0.00018802,2]
[366274017,1750170049346,-4417.23628272,0.00018802,2]
[366274018,1750170049369,-222.42685085,0.00018892,2]
[366274019,1750170049391,-600.0,0.00019396,2]
[366274020,1750170049413,-572.132861,0.00019947,2]
[366274021,1750170049436,-300.0,0.00019999,2]
[366274022,1750170049461,-1200.0,0.00019999,2]
[366274023,1750170049485,-21.32754236,0.0002,2]
[366274024,1750170049509,-1886.87646307,0.0002,2]
[366274025,1750170054997,217.33,0.00017389,2]
[366274026,1750170056196,-164.64259941,0.00018217,2]
[366274027,1750170066956,5000.0,0.00018,2]
[366274028,1750170067618,-256.46804464,0.00018217,2]
[366274029,1750170083743,5000.0,0.00018,2]
[366274030,1750170099270,5000.0,0.00018,2]
[366274031,1750170115257,5000.0,0.00018,2]
[366274032,1750170122922,-13.54935595,0.00018217,2]
[366274033,1750170122946,-651.99,0.00019045,2]
[366274034,1750170122974,-834.46064405,0.00019873,2]
[366274035,1750170141417,190.11,0.0001795,2]
[366274036,1750170188993,-380.23,0.00018805,2]
[366274037,1750170189016,-500.0,0.00019522,2]
[366274038,1750170189041,-570.34,0.0001966,2]
[366274039,1750170189064,-5000.0,0.00019674,2]
[366274040,1750170189086,-1188.43,0.0002,2]
[366274041,1750170226370,175.6,0.00017965,2]
[366274042,1750170264696,-351.19,0.0001882,2]
[366274043,1750170264719,-238.11553964,0.00019206,2]
[366274044,1750170264748,-526.79,0.00019676,2]
[366274045,1750170264771,-5000.0,0.000198,2]
[366274046,1750170264794,-160.8455315,0.00019884,2]
[366274047,1750170264815,-70.05892886,0.0002,2]
[366274049,1750170309796,162.19,0.00017998,2]
[366274050,1750170329324,-324.37,0.00018855,2]
[366274051,1750170331116,4675.63,0.00019,2]
[366274052,1750170331142,5000.0,0.00019,2]
[366274053,1750170331168,314.77671172,0.00019,2]
[366274054,1750170395752,155.99,0.00018001,2]
[366274055,1750170397842,311.99,0.00018859,2]
[366274056,1750170401339,150.0,0.000189,2]
[366274058,1750170481373,150.04,0.00017311,2]
[366274059,1750170482327,300.07,0.00018135,2]
[366274060,1750170482787,450.11,0.0001896,2]
[366274064,1750170502747,736.57,0.000191,2]
[366274069,1750170518539,674.08250755,0.0001,7]
[366274075,1750170561922,150.0,0.0001732,2]
[366274076,1750170562337,277.16,0.00018145,2]
[366274077,1750170562797,415.74,0.0001897,2]
[366274104,1750170631986,-5000.0,0.00019519,2]
[366274107,1750170631996,-554.32,0.00019794,2]
[366274109,1750170632006,-1090.0,0.00019961,2]
[366274111,1750170632016,-300.0,0.00019962,2]
[366274114,1750170632025,-300.0,0.00019962,2]
[366274116,1750170632035,-7621.1690977,0.00019963,2]
[366274118,1750170632045,-987.18605277,0.0002,2]
[366274119,1750170632055,-210.58658236,0.0002,2]
[366274120,1750170632066,-6567.94208121,0.0002,2]
[366274121,1750170632076,-1184.90930731,0.0002,2]
[366274122,1750170632087,-360.81531823,0.0002,2]
[366274123,1750170632097,-554.42837408,0.0002,2]
[366274124,1750170632107,-6343.40437459,0.0002,7]
[366274125,1750170632120,-48.63751264,0.0002,7]
[366274126,1750170632131,-412.75043494,0.0002,2]
[366274127,1750170632141,-398.56205242,0.0002,2]
[366274128,1750170632210,-371.1576791,0.0002,2]
[366274129,1750170632223,-2400.56941447,0.0002,2]
[366274130,1750170632234,-206.015824,0.00020012,2]
[366274131,1750170632244,-536.857267,0.00020187,2]
[366274132,1750170632254,-500.0,0.00020492,2]
[366274133,1750170632264,-500.0,0.00020549,2]
[366274134,1750170632275,-390.13248945,0.000206,3]
[366274135,1750170632287,-390.13248923,0.000206,3]
[366274136,1750170632296,-390.13248923,0.000206,3]
[366274137,1750170632306,-390.13248923,0.000206,3]
[366274138,1750170632316,-692.9,0.00020619,2]
[366274139,1750170632326,-390.13248923,0.00020728,3]
[366274140,1750170632335,-390.13248923,0.00020934,4]
[366274141,1750170632346,-390.13248923,0.00021141,4]
[366274142,1750170632357,-54.64372364,0.00021348,5]
[366274172,1750170637930,-157.74935064,0.00019694,2]
[366274174,1750170637940,-277.46464711,0.00019999,2]
[366274176,1750170637952,-222.53535289,0.00019999,2]
[366274178,1750170637961,-500.0,0.00019999,2]
[366274180,1750170637971,-156.9977156,0.00019999,2]
[366274182,1750170637981,-500.0,0.00019999,2]
[366274184,1750170637991,-500.0,0.00019999,2]
[366274186,1750170638002,-271.0825055,0.00019999,2]
[366274188,1750170638011,-500.0,0.00019999,2]
[366274190,1750170638021,-500.0,0.00019999,2]
[366274192,1750170638031,-500.0,0.00019999,2]
[366274194,1750170638040,-500.0,0.00019999,2]
[366274196,1750170638050,-132.54781177,0.00019999,2]
[366274202,1750170638093,-367.45218823,0.00019999,2]
[366274204,1750170638103,-500.0,0.00019999,2]
[366274206,1750170638114,-500.0,0.00019999,2]
[366274208,1750170638123,-500.0,0.00019999,2]
[366274210,1750170638133,-500.0,0.00019999,2]
[366274212,1750170638143,-500.0,0.00019999,2]
[366274214,1750170638152,-196.64848294,0.00019999,2]
[366274216,1750170638162,-500.0,0.00019999,2]
[366274218,1750170638172,-500.0,0.00019999,2]
[366274220,1750170638183,-500.0,0.00019999,2]
[366274222,1750170638192,-500.0,0.00019999,2]
[366274224,1750170638202,-500.0,0.00019999,2]
[366274226,1750170638212,-500.0,0.00019999,2]
[366274228,1750170638221,-500.0,0.00019999,2]
[366274230,1750170638231,-500.0,0.00019999,2]
[366274232,1750170638240,-500.0,0.00019999,2]
[366274234,1750170638251,-500.0,0.00019999,2]
[366274236,1750170638261,-500.0,0.00019999,2]
[366274238,1750170638271,-574.42373693,0.00019999,2]
[366274240,1750170638280,-500.0,0.00019999,2]
[366274242,1750170638290,-500.0,0.00019999,2]
[366274244,1750170638300,-500.0,0.00019999,2]
[366274245,1750170638310,-500.0,0.00019999,2]
[366274248,1750170638321,-500.0,0.00019999,2]
[366274249,1750170638331,-658.12403518,0.00020619,2]
[366274252,1750170638341,-658.12403518,0.00020619,2]
[366274253,1750170638352,-335.48876559,0.00021348,5]
[366274255,1750170638362,-254.867,0.00021448,2]
[366274257,1750170638372,-163.27,0.00021448,2]
[366274259,1750170638383,-9195.3162175,0.00021458,2]
[366274262,1750170638394,-390.13248923,0.00021555,5]
[366274264,1750170638403,-168.9265973,0.00021584,2]
[366274266,1750170638413,-500.0,0.00021584,2]
[366274267,1750170638423,-500.0,0.00021584,2]
[366274269,1750170638432,-500.0,0.00021584,2]
[366274271,1750170638442,-596.57307965,0.00021584,2]
[366274273,1750170638451,-500.0,0.00021584,2]
[366274275,1750170638461,-509.97905134,0.00021586,2]
[366274277,1750170638471,-500.0,0.00021631,2]
[366274279,1750170638481,-845.62440851,0.00021731,2]
[366274281,1750170638490,-420.0,0.00021737,2]
[366274283,1750170638500,-420.0,0.00021737,2]
[366274285,1750170638509,-390.13248923,0.00021762,5]
[366274287,1750170638519,-12540.12310952,0.00021851,2]
[366274289,1750170638528,-213.39869953,0.00021851,2]
[366274291,1750170638538,-150.52162159,0.000219,2]
[366274293,1750170638547,-390.13248923,0.00021969,6]
[366274295,1750170638557,-500.0,0.00021999,2]
[366274297,1750170638568,-500.0,0.00021999,2]
[366274299,1750170638577,-500.0,0.00021999,2]
[366274301,1750170638587,-500.0,0.00021999,2]
[366274303,1750170638597,-425.20863013,0.00021999,2]
[366274305,1750170638607,-500.0,0.00021999,2]
[366274307,1750170638617,-500.0,0.00021999,2]
[366274310,1750170638628,-500.0,0.00021999,2]
[366274312,1750170638638,-500.0,0.00021999,2]
[366274314,1750170638647,-500.0,0.00021999,2]
[366274315,1750170638658,-500.0,0.00021999,2]
[366274317,1750170638668,-500.0,0.00021999,2]
[366274320,1750170638678,-500.0,0.00021999,2]
[366274322,1750170638688,-53935.39174244,0.00022,2]
[366274324,1750170638698,-4254.02721369,0.00022,7]
[366274326,1750170638707,-467.81868285,0.00022067,2]
[366274327,1750170638717,-390.13248923,0.00022176,6]
[366274330,1750170638727,-24900.0,0.00022263,2]
[366274331,1750170638737,-390.13248923,0.00022383,7]
[366274333,1750170638746,-500.0,0.0002245,2]
[366274335,1750170638756,-390.13248923,0.0002259,7]
[366274337,1750170638765,-150.52162157,0.00022612,2]
[366274339,1750170638776,-500.0,0.00022684,2]
[366274342,1750170638787,-500.0,0.00022712,2]
[366274344,1750170638798,-390.13248923,0.00022797,7]
[366274346,1750170638812,-207.4,0.00022872,2]
[366274348,1750170638822,-500.0,0.00022988,2]
[366274350,1750170638832,-390.13248923,0.00023003,8]
[366274352,1750170638843,-500.0,0.00023037,2]
[366274354,1750170638853,-500.0,0.00023136,2]
[366274356,1750170638863,-390.13248923,0.0002321,8]
[366274358,1750170638873,-583.1371742,0.000233,15]
[366274360,1750170638884,-150.52162157,0.00023324,2]
[366274362,1750170638894,-500.0,0.00023358,2]
[366274364,1750170638903,-500.0,0.00023374,2]
[366274366,1750170638912,-390.13248923,0.00023417,9]
[366274368,1750170638922,-206.015824,0.00023437,2]
[366274370,1750170638932,-206.0,0.0002347,2]
[366274372,1750170638942,-287.7849409,0.00023529,2]
[366274374,1750170638952,-390.13248923,0.00023624,9]
[366274376,1750170638962,-420.0,0.00023671,2]
[366274378,1750170638972,-206.0,0.0002371,2]
[366274380,1750170638982,-672.818416,0.00023725,3]
[366274382,1750170638992,-500.0,0.00023739,2]
[366274384,1750170639001,-500.0,0.00023795,2]
[366274386,1750170639011,-390.13248923,0.00023831,10]
[366274388,1750170639021,-638.0,0.00023839,2]
[366274390,1750170639031,-432.76371728,0.00023848,2]
[366274401,1750170639134,-500.0,0.00023893,2]
[366274403,1750170639144,-150.0,0.000239,2]
[366274405,1750170639154,-206.0,0.0002394,2]
[366274407,1750170639164,-160.0,0.00023969,2]
[366274409,1750170639174,-835.82910252,0.00023969,2]
[366274411,1750170639184,-160.0,0.00023969,2]
[366274413,1750170639193,-229.94211981,0.0002397,2]
[366274415,1750170639203,-560.64,0.00024,2]
[366274417,1750170639213,-229.94211981,0.00024,7]
[366274419,1750170639223,-150.52162157,0.00024036,2]
[366274421,1750170639233,-390.13248923,0.00024038,10]
[366274424,1750170639242,-406.0,0.00024091,2]
[366274426,1750170639252,-352.44,0.00024099,3]
[366274428,1750170639262,-914.33808703,0.00024105,2]
[366274430,1750170639272,-500.0,0.00024108,2]
[366274432,1750170639281,-160.0,0.00024108,2]
[366274434,1750170639290,-472.59240653,0.00024109,6]
[366274436,1750170639300,-460.0,0.00024109,6]
[366274438,1750170639309,-440.0,0.00024109,6]
[366274440,1750170639319,-440.0,0.00024109,6]
[366274442,1750170639328,-460.0,0.00024109,6]
[366274444,1750170639338,-336.14451815,0.00024109,6]
[366274447,1750170639347,-424.26392241,0.00024109,6]
[366274450,1750170639356,-460.0,0.00024109,6]
[366274452,1750170639365,-428.47391347,0.00024109,6]
[366274454,1750170639375,-460.0,0.00024109,6]
[366274456,1750170639384,-383.67696952,0.00024109,6]
[366274458,1750170639394,-260.0,0.00024109,6]
[366274460,1750170639404,-157.24965494,0.00024109,6]
[366274462,1750170639414,-578.85285043,0.00024109,6]
[366274464,1750170639423,-460.0,0.00024109,6]
[366274466,1750170639432,-460.0,0.00024109,6]
[366274468,1750170639442,-460.0,0.00024109,6]
[366274471,1750170639451,-584.57928508,0.00024109,6]
[366274473,1750170639460,-430.0,0.00024109,6]
[366274475,1750170639470,-291.41537892,0.00024109,6]
[366274477,1750170639479,-431.95614544,0.00024109,6]
[366274479,1750170639489,-460.0,0.00024109,6]
[366274481,1750170639499,-460.0,0.00024109,6]
[366274483,1750170639509,-170.25169962,0.00024109,6]
[366274485,1750170639518,-460.0,0.00024109,6]
[366274487,1750170639529,-460.0,0.00024109,6]
[366274489,1750170639539,-460.0,0.00024109,6]
[366274490,1750170639548,-460.0,0.00024109,6]
[366274493,1750170639558,-460.0,0.00024109,6]
[366274495,1750170639568,-460.0,0.00024109,6]
[366274496,1750170639578,-500.0,0.00024109,6]
[366274499,1750170639588,-460.0,0.00024109,6]
[366274501,1750170639598,-495.1144221,0.00024109,6]
[366274503,1750170639608,-460.0,0.00024109,6]
[366274504,1750170639618,-460.0,0.00024109,6]
[366274507,1750170639628,-460.0,0.00024109,6]
[366274508,1750170639638,-420.0,0.00024109,6]
[366274510,1750170639648,-456.34196986,0.00024109,6]
[366274512,1750170639658,-460.0,0.00024109,6]
[366274515,1750170639668,-460.0,0.00024109,6]
[366274516,1750170639677,-460.0,0.00024109,6]
[366274518,1750170639687,-460.0,0.00024109,6]
[366274520,1750170639697,-460.0,0.00024109,6]
[366274523,1750170639707,-404.0,0.00024109,6]
[366274524,1750170639718,-460.0,0.00024109,6]
[366274526,1750170639728,-460.0,0.00024109,6]
[366274528,1750170639737,-460.0,0.00024109,6]
[366274531,1750170639748,-515.67654723,0.00024109,6]
[366274532,1750170639758,-460.0,0.00024109,6]
[366274534,1750170639768,-460.0,0.00024109,6]
[366274536,1750170639778,-460.0,0.00024109,2]
[366274538,1750170639788,-282.57561481,0.00024109,6]
[366274540,1750170639798,-460.0,0.00024109,6]
[366274542,1750170639816,-548.12663295,0.00024109,6]
[366274544,1750170639829,-460.0,0.00024109,6]
[366274546,1750170639840,-460.0,0.00024109,6]
[366274548,1750170639850,-440.0,0.00024109,6]
[366274550,1750170639860,-460.0,0.00024109,6]
[366274552,1750170639870,-460.0,0.00024109,6]
[366274554,1750170639879,-460.0,0.00024109,6]
[366274556,1750170639889,-460.0,0.00024109,6]
[366274558,1750170639899,-460.0,0.00024109,6]
[366274560,1750170639908,-460.0,0.00024109,6]
[366274562,1750170639918,-460.0,0.00024109,6]
[366274564,1750170639927,-460.0,0.00024109,6]
[366274566,1750170639936,-460.0,0.00024109,6]
[366274568,1750170639947,-460.0,0.00024109,6]
[366274570,1750170639956,-460.0,0.00024109,6]
[366274572,1750170639966,-179.02805812,0.00024109,6]
[366274574,1750170639976,-460.0,0.00024109,6]
[366274576,1750170639986,-460.0,0.00024109,6]
[366274578,1750170639995,-460.0,0.00024109,6]
[366274580,1750170640005,-460.0,0.00024109,6]
[366274582,1750170640015,-440.0,0.00024109,6]
[366274584,1750170640025,-460.0,0.00024109,6]
[366274586,1750170640035,-460.0,0.00024109,6]
[366274588,1750170640045,-460.0,0.00024109,6]
[366274590,1750170640055,-460.0,0.00024109,6]
[366274592,1750170640064,-460.0,0.00024109,6]
[366274594,1750170640074,-221.05847454,0.00024109,6]
[366274596,1750170640083,-474.52452538,0.00024109,6]
[366274598,1750170640092,-460.0,0.00024109,6]
[366274600,1750170640102,-460.0,0.00024109,6]
[366274602,1750170640111,-460.0,0.00024109,6]
[366274604,1750170640121,-462.33692961,0.00024109,6]
[366274606,1750170640130,-460.0,0.00024109,6]
[366274608,1750170640140,-435.4188828,0.00024109,6]
[366274610,1750170640149,-430.0,0.00024109,6]
[366274612,1750170640159,-460.0,0.00024109,6]
[366274614,1750170640168,-460.0,0.00024109,6]
[366274615,1750170640177,-460.0,0.00024109,6]
[366274617,1750170640187,-460.0,0.00024109,6]
[366274619,1750170640197,-460.0,0.00024109,6]
[366274622,1750170640207,-468.92092028,0.00024109,6]
[366274624,1750170640217,-460.0,0.00024109,6]
[366274625,1750170640227,-460.0,0.00024109,6]
[366274627,1750170640236,-212.34259664,0.00024109,6]
[366274629,1750170640246,-460.0,0.00024109,6]
[366274641,1750170640345,-460.0,0.00024109,6]
[366274643,1750170640355,-460.0,0.00024109,6]
[366274645,1750170640365,-430.0,0.00024109,6]
[366274647,1750170640374,-460.0,0.00024109,6]
[366274649,1750170640384,-460.0,0.00024109,6]
[366274651,1750170640393,-460.0,0.00024109,6]
[366274653,1750170640403,-259.71971831,0.00024109,6]
[366274655,1750170640412,-440.0,0.00024109,6]
[366274657,1750170640422,-460.0,0.00024109,6]
[366274659,1750170640432,-460.0,0.00024109,6]
[366274661,1750170640441,-460.0,0.00024109,6]
[366274663,1750170640451,-460.0,0.00024109,6]
[366274665,1750170640460,-460.0,0.00024109,6]
[366274667,1750170640469,-460.0,0.00024109,6]
[366274669,1750170640479,-460.0,0.00024109,6]
[366274671,1750170640489,-460.0,0.00024109,6]
[366274673,1750170640498,-470.0,0.00024109,6]
[366274675,1750170640508,-460.0,0.00024109,6]
[366274677,1750170640518,-470.0,0.00024109,6]
[366274679,1750170640528,-460.0,0.00024109,6]
[366274681,1750170640537,-460.0,0.00024109,6]
[366274682,1750170640548,-406.09013989,0.00024109,6]
[366274685,1750170640557,-460.0,0.00024109,6]
[366274686,1750170640567,-460.0,0.00024109,6]
[366274688,1750170640576,-460.0,0.00024109,6]
[366274690,1750170640586,-271.08527578,0.00024109,6]
[366274692,1750170640597,-460.0,0.00024109,6]
[366274694,1750170640606,-430.0,0.00024109,6]
[366274696,1750170640616,-440.0,0.00024109,6]
[366274698,1750170640625,-460.0,0.00024109,6]
[366274700,1750170640635,-430.0,0.00024109,6]
[366274702,1750170640644,-551.97,0.00024109,6]
[366274704,1750170640654,-460.0,0.00024109,6]
[366274706,1750170640663,-460.0,0.00024109,6]
[366274708,1750170640672,-460.0,0.00024109,6]
[366274710,1750170640682,-460.0,0.00024109,6]
[366274712,1750170640691,-460.0,0.00024109,6]
[366274714,1750170640700,-460.0,0.00024109,6]
[366274716,1750170640709,-460.0,0.00024109,6]
[366274718,1750170640719,-549.97,0.00024109,6]
[366274720,1750170640728,-330.0,0.00024109,6]
[366274722,1750170640738,-440.0,0.00024109,6]
[366274724,1750170640747,-460.0,0.00024109,6]
[366274726,1750170640757,-460.0,0.00024109,6]
[366274728,1750170640767,-460.0,0.00024109,6]
[366274730,1750170640776,-460.0,0.00024109,6]
[366274732,1750170640786,-440.0,0.00024109,6]
[366274734,1750170640795,-460.0,0.00024109,6]
[366274736,1750170640808,-460.0,0.00024109,6]
[366274738,1750170640818,-598.77875066,0.00024109,6]
[366274740,1750170640827,-374.19538542,0.00024109,6]
[366274742,1750170640837,-460.0,0.00024109,6]
[366274744,1750170640847,-460.0,0.00024109,6]
[366274747,1750170640872,-460.0,0.00024109,6]
[366274750,1750170640891,-460.0,0.00024109,6]
[366274754,1750170640913,-460.0,0.00024109,6]